bitfinex-derivatives/quotes_BNBF0:USTF0_20251219
["timestamp","ask_amount","ask_price","bid_price","bid_amount"]
[1766176207391,1.72973604,859.66,858.57,0.7261236]
[1766176207687,1.72973604,859.66,858.58,0.7261236]
[1766176207893,1.72973604,859.66,858.59,0.7261236]
[1766176208092,1.72973604,859.66,858.6,0.7261236]
[1766176208291,1.72973604,859.66,858.61,0.7261236]
[1766176208493,1.72973604,859.66,858.62,0.7261236]
[1766176208694,1.72973604,859.66,858.35,0.86740367]
[1766176208894,1.72973604,859.66,858.36,0.72538184]
[1766176209193,1.72973604,859.66,858.37,0.72538184]
[1766176209394,1.72973604,859.66,858.38,0.72538184]
[1766176209594,1.72973604,859.66,858.39,0.72538184]
[1766176209789,1.72973604,859.66,858.4,0.72538184]
[1766176209995,1.72973604,859.66,858.41,0.72538184]
[1766176210195,1.72973604,859.65,858.42,0.72538184]
[1766176210496,1.72973604,859.65,858.43,0.72538184]
[1766176210697,1.72973604,859.65,858.44,0.72538184]
[1766176210898,1.72973604,859.63,858.45,0.72538184]
[1766176211099,1.72973604,859.51,858.46,0.72538184]
[1766176211299,1.72973604,859.51,857.98,0.20238441]
[1766176211300,1.72973604,859.48,858.18,0.86740367]
[1766176211499,1.72973604,859.48,858.19,0.72589304]
[1766176211699,1.72973604,859.48,858.2,0.72589304]
[1766176211899,1.72973604,859.48,858.21,0.72589304]
[1766176212101,1.72973604,859.48,858.22,0.72589304]
[1766176212395,1.72973604,859.47,858.23,0.72589304]
[1766176212612,1.72973604,859.47,858.24,0.72589304]
[1766176212799,1.72973604,859.47,858.25,0.72589304]
[1766176213095,1.72973604,859.47,858.26,0.72589304]
[1766176213296,1.72973604,859.47,858.17,0.86740367]
[1766176213297,1.72973604,859.32,858.27,0.72589304]
[1766176213499,1.72973604,859.33,858.28,0.72589304]
[1766176213696,1.72973604,859.33,858.29,0.72589304]
[1766176213897,1.72973604,859.33,858.02,0.86740367]
[1766176214101,1.72973604,859.33,858.03,0.72350867]
[1766176214403,1.72973604,859.34,858.04,0.72350867]
[1766176214602,1.72973604,859.34,858.05,0.72350867]
[1766176214797,1.72973604,859.34,858.06,0.72350867]
[1766176214997,1.72973604,859.34,858.07,0.72350867]
[1766176215298,1.72973604,859.34,858.08,0.72350867]
[1766176215496,1.72973604,859.41,858.09,0.72350867]
[1766176215801,1.72973604,859.41,858.1,0.72350867]
[1766176216003,1.72973604,859.41,858.11,0.72350867]
[1766176216201,1.72973604,859.41,858.12,0.72350867]
[1766176216405,1.72973604,859.41,858.13,0.72350867]
[1766176216603,1.72973604,859.41,858.06,0.86740367]
[1766176216604,1.72973604,859.41,858.14,0.72350867]
[1766176216800,1.72973604,859.41,858.15,0.72350867]
[1766176217005,1.72973604,859.41,858.16,0.72350867]
[1766176217202,1.72973604,859.41,858.17,0.72350867]
[1766176217402,1.72973604,859.42,858.18,0.72350867]
[1766176217604,1.72973604,859.42,858.19,0.72350867]
[1766176217802,1.72973604,859.42,858.2,0.72350867]
[1766176218005,1.72973604,859.42,858.21,0.72350867]
[1766176218204,1.72973604,859.42,858.22,0.72350867]
[1766176218409,1.72973604,859.42,858.23,0.72350867]
[1766176218607,1.72973604,859.42,858.24,0.72350867]
[1766176218905,1.72973604,859.42,858.25,0.72350867]
[1766176219204,1.72973604,859.42,858.26,0.72350867]
[1766176219407,1.72973604,859.42,858.27,0.72350867]
[1766176219608,1.72973604,859.42,858.28,0.72350867]
[1766176219807,1.72973604,859.42,858.29,0.72350867]
[1766176220008,1.72973604,859.42,858.3,0.72350867]
[1766176220208,1.72973604,859.42,858.31,0.72350867]
[1766176220509,1.72973604,859.43,858.32,0.72265941]
[1766176220705,1.72973604,859.43,858.05,0.86740367]
[1766176220911,1.72973604,859.48,858.1,0.86740367]
[1766176221110,1.72973604,859.48,858.11,0.7226139]
[1766176221410,1.72973604,859.48,858.12,0.7226139]
[1766176221610,1.72973604,859.48,858.13,0.7226139]
[1766176221810,1.72973604,859.48,858.14,0.7226139]
[1766176222008,1.72973604,859.48,858.15,0.7226139]
[1766176222210,1.72973604,859.48,858.16,0.7226139]
[1766176222411,1.72973604,859.48,858.17,0.7226139]
[1766176222609,1.72973604,859.48,858.18,0.7226139]
[1766176222808,1.72973604,859.48,858.19,0.7226139]
[1766176223110,1.72973604,859.48,858.2,0.7226139]
[1766176223410,1.72973604,859.49,858.21,0.7226139]
[1766176223612,1.72973604,859.49,858.22,0.7226139]
[1766176223809,1.72973604,859.48,858.23,0.7226139]
[1766176224015,1.72973604,859.48,858.24,0.7226139]
[1766176224315,1.72973604,859.49,858.25,0.7226139]
[1766176224514,1.72973604,859.49,858.26,0.7226139]
[1766176224714,1.72973604,859.49,858.27,0.7226139]
[1766176224917,1.72973604,859.49,858.28,0.7226139]
[1766176225110,1.72973604,859.49,858.29,0.7226139]
[1766176225415,1.72973604,859.49,858.3,0.7226139]
[1766176225616,1.72973604,859.49,858.31,0.7226139]
[1766176225815,1.72973604,859.49,858.32,0.7226139]
[1766176226115,1.72973604,859.49,858.33,0.7226139]
[1766176226415,1.72973604,859.49,858.34,0.7226139]
[1766176226611,1.72973604,859.49,858.35,0.7226139]
[1766176226816,1.72973604,859.49,858.08,0.86740367]
[1766176227017,1.72973604,859.49,858.09,0.7223008]
[1766176227213,1.72973604,859.49,858.1,0.7223008]
[1766176227417,1.72973604,859.5,858.11,0.7223008]
[1766176227614,1.72973604,859.5,858.12,0.7223008]
[1766176227818,1.72973604,859.5,858.13,0.7223008]
[1766176228020,1.72973604,859.5,858.14,0.7223008]
[1766176228314,1.72973604,859.5,858.15,0.7223008]
[1766176228519,1.72973604,859.5,858.07,0.86740367]
[1766176228520,1.72973604,859.5,858.16,0.7223008]
[1766176228719,1.72973604,859.5,858.17,0.7223008]
[1766176228919,1.72973604,859.5,858.18,0.7223008]
[1766176229120,1.72973604,859.5,858.19,0.7223008]
[1766176229417,1.72973604,859.5,858.2,0.7223008]
[1766176229616,1.72973604,859.5,858.21,0.7223008]
[1766176229918,1.72973604,859.5,858.22,0.7223008]
[1766176230115,1.72973604,859.5,858.23,0.7223008]
[1766176230316,1.72973604,859.5,858.24,0.7223008]
[1766176230514,1.72973604,859.51,858.25,0.7223008]
[1766176230814,1.72973604,859.58,858.26,0.7223008]
[1766176231015,1.72973604,859.58,858.27,0.7223008]
[1766176231220,1.72973604,859.59,858.28,0.7223008]
[1766176231418,1.72973604,859.58,858.29,0.7223008]
[1766176231619,1.72973604,859.58,858.3,0.7223008]
[1766176231916,1.72973604,859.58,858.31,0.7223008]
[1766176232216,1.72973604,859.59,858.32,0.7223008]
[1766176232520,1.72973604,859.58,858.33,0.7223008]
[1766176232716,1.72973604,859.58,858.34,0.7223008]
[1766176233016,1.72973604,859.58,858.35,0.7223008]
[1766176233219,0.20249747,859.87,858.14,0.86740367]
[1766176233220,1.72973604,859.59,858.36,0.7223008]
[1766176233422,1.72973604,859.59,858.37,0.7223008]
[1766176233622,1.72973604,859.63,858.38,0.7223008]
[1766176233823,1.72973604,859.63,858.39,0.7223008]
[1766176234023,1.72973604,859.63,858.4,0.7223008]
[1766176234219,1.72973604,859.64,858.41,0.7223008]
[1766176234419,1.72973604,859.63,858.42,0.7223008]
[1766176234624,1.72973604,859.63,858.43,0.7223008]
[1766176234825,1.72973604,859.63,858.44,0.7223008]
[1766176235121,1.72973604,859.64,858.45,0.7223008]
[1766176235418,1.72973604,859.63,858.46,0.7223008]
[1766176235619,1.72973604,859.63,858.19,0.86740367]
[1766176235819,1.72973604,859.63,858.2,0.7216178]
[1766176236020,1.72973604,859.63,858.21,0.7216178]
[1766176236223,1.72973604,859.69,858.24,0.86740367]
[1766176236424,1.72973604,859.68,858.25,0.7216178]
[1766176236624,1.72973604,859.68,858.26,0.7216178]
[1766176236821,1.72973604,859.69,858.27,0.7216178]
[1766176237026,1.72973604,859.69,858.28,0.7216178]
[1766176237223,1.72973604,859.69,858.29,0.7216178]
[1766176237427,1.72973604,859.69,858.3,0.7216178]
[1766176237626,1.72973604,859.69,858.31,0.7216178]
[1766176237823,1.72973604,859.69,858.32,0.7216178]
[1766176238028,1.72973604,859.69,858.33,0.7216178]
[1766176238323,1.72973604,859.69,858.34,0.7216178]
[1766176238527,1.72973604,859.69,858.35,0.7216178]
[1766176238727,1.72973604,859.69,858.36,0.7216178]
[1766176238928,1.72973604,859.69,858.37,0.7216178]
[1766176239224,1.72973604,859.69,858.38,0.7216178]
[1766176239428,1.72973604,859.69,858.39,0.7216178]
[1766176239727,1.72973604,859.69,858.4,0.7216178]
[1766176239925,1.72973604,859.69,858.41,0.7216178]
[1766176240123,1.72973604,859.69,858.42,0.7216178]
[1766176240329,1.72973604,859.69,858.43,0.7216178]
[1766176240528,1.72973604,859.69,858.44,0.7216178]
[1766176240724,1.72973604,859.69,858.45,0.7216178]
[1766176240929,1.72973604,859.68,858.46,0.7216178]
[1766176241130,1.72973604,859.68,858.47,0.7216178]
[1766176241426,1.72973604,859.67,858.48,0.7216178]
[1766176241626,1.72973604,859.67,858.49,0.7216178]
[1766176241826,1.72973604,859.67,858.5,0.7216178]
[1766176242027,1.72973604,859.67,858.23,0.86740367]
[1766176242226,1.72973604,859.67,858.24,0.72151973]
[1766176242526,1.72973604,859.74,858.3,0.86740367]
[1766176242726,1.72973604,859.74,858.31,0.72151973]
[1766176242927,1.72973604,859.74,858.32,0.72151973]
[1766176243131,1.72973604,859.74,858.33,0.72151973]
[1766176243330,1.72973604,859.74,858.34,0.72151973]
[1766176243532,1.72973604,859.74,858.35,0.72151973]
[1766176243731,1.72973604,859.74,858.36,0.72151973]
[1766176243933,1.72973604,859.74,858.37,0.72151973]
[1766176244129,1.72973604,859.74,858.38,0.72151973]
[1766176244430,1.72973604,859.74,858.39,0.72151973]
[1766176244634,1.72973604,859.74,858.4,0.72151973]
[1766176244834,1.72973604,859.74,858.41,0.72151973]
[1766176245131,1.72973604,859.74,858.42,0.72151973]
[1766176245335,1.72973604,859.74,858.43,0.72151973]
[1766176245534,1.72973604,859.74,858.44,0.72151973]
[1766176245736,1.72973604,859.74,858.45,0.72151973]
[1766176245936,1.72973604,859.74,858.46,0.72151973]
[1766176246137,1.72973604,859.74,858.47,0.72151973]
[1766176246434,1.72973604,859.74,858.48,0.72151973]
[1766176246634,1.72973604,859.74,858.49,0.72151973]
[1766176246933,1.72973604,859.74,858.5,0.72151973]
[1766176247133,1.72973604,859.74,858.51,0.72151973]
[1766176247333,1.72973604,859.73,858.52,0.72151973]
[1766176247532,1.72973604,859.73,858.53,0.72151973]
[1766176247834,1.72973604,859.73,858.54,0.72151973]
[1766176248134,1.72973604,859.73,858.55,0.72151973]
[1766176248335,1.72973604,859.73,858.56,0.72151973]
[1766176248534,1.72973604,859.73,858.57,0.72151973]
[1766176248736,0.20249747,859.87,858.06,0.2025965]
[1766176248737,1.72973604,859.8,858.58,0.72151973]
[1766176248933,1.72973604,859.8,858.59,0.72151973]
[1766176249137,1.72973604,859.8,858.6,0.72151973]
[1766176249337,1.72973604,859.8,858.61,0.72151973]
[1766176249537,1.72973604,859.8,858.62,0.72151973]
[1766176249837,1.72973604,859.8,858.63,0.72151973]
[1766176250033,1.72973604,859.8,858.64,0.72151973]
[1766176250233,1.72973604,859.8,858.65,0.72151973]
[1766176250537,1.72973604,859.8,858.38,0.86740367]
[1766176250738,1.72973604,859.75,858.39,0.72153438]
[1766176250934,1.72973604,859.75,858.4,0.72153438]
[1766176251132,1.72973604,859.75,858.41,0.72153438]
[1766176251337,1.72973604,859.75,858.42,0.72153438]
[1766176251537,1.72973604,859.75,858.43,0.72153438]
[1766176251834,1.72973604,859.75,858.44,0.72153438]
[1766176252133,1.72973604,859.75,858.45,0.72153438]
[1766176252336,1.72973604,859.75,858.46,0.72153438]
[1766176252533,1.72973604,859.75,858.47,0.72153438]
[1766176252737,1.72973604,859.75,858.48,0.72153438]
[1766176252937,1.72973604,859.75,858.49,0.72153438]
[1766176253137,1.72973604,859.75,858.5,0.72153438]
[1766176253434,1.72973604,859.75,858.51,0.72153438]
[1766176253734,1.72973604,859.75,858.52,0.72153438]
[1766176253935,1.72973604,859.75,858.53,0.72153438]
[1766176254135,1.72973604,859.75,858.54,0.72153438]
[1766176254339,1.72973604,859.75,858.55,0.72153438]
[1766176254538,1.72973604,859.75,858.56,0.72153438]
[1766176254741,1.72973604,859.75,858.57,0.72153438]
[1766176254941,1.72973604,859.75,858.58,0.72153438]
[1766176255239,1.72973604,859.75,858.59,0.72153438]
[1766176255441,1.72973604,859.75,858.6,0.72153438]
[1766176255639,1.72973604,859.75,858.33,0.86740367]
[1766176255838,1.72973604,859.75,858.34,0.72093216]
[1766176256137,1.72973604,859.75,858.35,0.72093216]
[1766176256337,1.72973604,859.75,858.36,0.72093216]
[1766176256637,1.72973604,859.75,858.37,0.72093216]
[1766176256841,1.72973604,859.75,858.38,0.72093216]
[1766176257041,1.72973604,859.75,858.39,0.72093216]
[1766176257243,1.72973604,859.75,858.4,0.72093216]
[1766176257441,1.72973604,859.83,858.41,0.72093216]
[1766176257645,1.72973604,859.83,858.42,0.72093216]
[1766176257845,1.72973604,859.82,858.43,0.72093216]
[1766176258041,1.72973604,859.82,858.44,0.72093216]
[1766176258244,1.72973604,859.82,858.45,0.72093216]
[1766176258445,1.72973604,859.83,858.46,0.72093216]
[1766176258745,1.72973604,859.83,858.47,0.72093216]
[1766176258944,1.72973604,859.83,858.48,0.72093216]
[1766176259245,1.72973604,859.83,858.49,0.72093216]
[1766176259443,1.72973604,859.83,858.5,0.72093216]
[1766176259642,1.72973604,859.83,858.51,0.72093216]
[1766176259841,1.72973604,859.83,858.52,0.72093216]
[1766176260041,1.72973604,859.83,858.53,0.72093216]
[1766176260240,1.72973604,859.83,858.54,0.72093216]
[1766176260443,1.72973604,859.83,858.55,0.72093216]
[1766176260643,1.72973604,859.83,858.56,0.72093216]
[1766176260843,0.20249747,859.87,858.57,0.72093216]
[1766176261046,0.20249747,859.87,858.58,0.72093216]
[1766176261247,0.20249747,859.87,858.59,0.72093216]
[1766176261447,0.20249747,859.87,858.6,0.72093216]
[1766176261648,0.20249747,859.87,858.61,0.72093216]
[1766176261847,0.20249747,859.87,858.62,0.72093216]
[1766176262148,0.20249747,859.87,858.63,0.72093216]
[1766176262347,0.20249747,859.87,858.64,0.72093216]
[1766176262544,0.20249747,859.87,858.65,0.72093216]
[1766176262744,0.20249747,859.87,858.66,0.72093216]
[1766176262948,0.20249747,859.87,858.67,0.72093216]
[1766176263146,0.20249747,859.87,858.68,0.72093216]
[1766176263450,0.20249747,859.87,858.69,0.72093216]
[1766176263651,0.20249747,859.87,858.7,0.72093216]
[1766176263849,0.20249747,859.87,858.71,0.72093216]
[1766176264049,0.20249747,859.87,858.43,0.86740367]
[1766176264248,0.20249747,859.87,858.44,0.72036652]
[1766176264445,0.20249747,859.87,858.43,0.86740367]
[1766176264446,1.72973604,859.83,858.45,0.72036652]
[1766176264650,1.72973604,859.83,858.46,0.72036652]
[1766176264850,1.72973604,859.83,858.47,0.72036652]
[1766176265046,1.72973604,859.83,858.48,0.72036652]
[1766176265250,1.72973604,859.83,858.49,0.72036652]
[1766176265451,1.72973604,859.79,858.5,0.72036652]
[1766176265752,1.72973604,859.79,858.51,0.72036652]
[1766176265951,1.72973604,859.79,858.52,0.72036652]
[1766176266151,1.72973604,859.79,858.53,0.72036652]
[1766176266452,1.72973604,859.79,858.54,0.72036652]
[1766176266653,1.72973604,859.79,858.55,0.72036652]
[1766176266949,1.72973604,859.79,858.56,0.72036652]
[1766176267152,1.72973604,859.79,858.57,0.72036652]
[1766176267352,1.72973604,859.79,858.58,0.72036652]
[1766176267550,1.72973604,859.79,858.59,0.72036652]
[1766176267750,1.72973604,859.79,858.32,0.86740367]
[1766176267952,1.72973604,859.79,858.33,0.72050741]
[1766176268151,1.72973604,859.79,858.34,0.72050741]
[1766176268351,1.72973604,859.79,858.35,0.72050741]
[1766176268555,1.72973604,859.79,858.36,0.72050741]
[1766176268756,1.72973604,859.79,858.37,0.72050741]
[1766176269056,1.72973604,859.79,858.38,0.72050741]
[1766176269255,1.72973604,859.79,858.39,0.72050741]
[1766176269458,1.72973604,859.79,858.4,0.72050741]
[1766176269654,1.72973604,859.79,858.41,0.72050741]
[1766176269852,1.72973604,859.79,858.42,0.72050741]
[1766176270054,1.72973604,859.79,858.43,0.72050741]
[1766176270253,1.72973604,859.79,858.44,0.72050741]
[1766176270454,1.72973604,859.79,858.45,0.72050741]
[1766176270757,1.72973604,859.79,858.46,0.72050741]
[1766176270957,1.72973604,859.79,858.47,0.72050741]
[1766176271258,1.72973604,859.79,858.48,0.72050741]
[1766176271558,1.72973604,859.79,858.49,0.72050741]
[1766176271757,1.72973604,859.79,858.5,0.72050741]
[1766176271955,1.72973604,859.79,858.51,0.72050741]
[1766176272158,1.72973604,859.79,858.52,0.72050741]
[1766176272358,1.72973604,859.79,858.53,0.72050741]
[1766176272555,1.72973604,859.79,858.54,0.72050741]
[1766176272755,1.72973604,859.79,858.55,0.72050741]
[1766176272960,1.72973604,859.79,858.56,0.72050741]
[1766176273255,1.72973604,859.79,858.57,0.72050741]
[1766176273459,1.72973604,859.84,858.58,0.72050741]
[1766176273660,1.72973604,859.84,858.59,0.72050741]
[1766176273858,1.72973604,859.84,858.6,0.72050741]
[1766176274058,1.72973604,859.84,858.61,0.72050741]
[1766176274255,1.72973604,859.84,858.62,0.72050741]
[1766176274457,1.72973604,859.83,858.63,0.72050741]
[1766176274757,1.72973604,859.83,858.64,0.72050741]
[1766176275059,1.72973604,859.83,858.37,0.86740367]
[1766176275262,1.72973604,859.83,858.38,0.72062193]
[1766176275460,1.72973604,859.83,858.39,0.72062193]
[1766176275659,1.72973604,859.83,858.4,0.72062193]
[1766176275857,1.72973604,859.83,858.41,0.72062193]
[1766176276061,1.72973604,859.83,858.42,0.72062193]
[1766176276259,1.72973604,859.83,858.43,0.72062193]
[1766176276463,1.72973604,859.86,858.44,0.72062193]
[1766176276657,1.72973604,859.86,858.45,0.72062193]
[1766176276861,1.72973604,859.86,858.46,0.72062193]
[1766176277059,1.72973604,859.86,858.47,0.72062193]
[1766176277358,1.72973604,859.86,858.48,0.72062193]
[1766176277557,1.72973604,859.86,858.49,0.72062193]
[1766176277760,1.72973604,859.86,858.42,0.86740367]
[1766176277761,1.72973604,859.86,858.5,0.72062193]
[1766176277961,1.72973604,859.86,858.51,0.72062193]
[1766176278159,1.72973604,859.86,858.52,0.72062193]
[1766176278358,1.72973604,859.86,858.53,0.72062193]
[1766176278561,1.72973604,859.86,858.54,0.72062193]
[1766176278763,1.72973604,859.86,858.55,0.72062193]
[1766176278963,1.72973604,859.86,858.56,0.72062193]
[1766176279264,1.72973604,859.86,858.57,0.72062193]
[1766176279464,1.72973604,859.86,858.58,0.72062193]
[1766176279664,0.20249747,859.87,858.59,0.72062193]
[1766176279959,0.20249747,859.87,858.6,0.72062193]
[1766176280159,0.20249747,859.87,858.61,0.72062193]
[1766176280360,0.20249747,859.87,858.62,0.72062193]
[1766176280560,0.20249747,859.87,858.63,0.72062193]
[1766176280861,0.20249747,859.87,858.64,0.72062193]
[1766176281064,0.20249747,859.87,858.65,0.72062193]
[1766176281264,0.20249747,859.87,858.66,0.72062193]
[1766176281462,0.20249747,859.87,858.67,0.72062193]
[1766176281661,0.20249747,859.87,858.68,0.72062193]
[1766176281861,0.20249747,859.87,858.69,0.72062193]
[1766176282061,0.20249747,859.87,858.7,0.72062193]
[1766176282265,0.20249747,859.87,858.71,0.72062193]
[1766176282465,0.20249747,859.87,858.72,0.72062193]
[1766176282662,0.20249747,859.87,858.73,0.72062193]
[1766176282866,0.20249747,859.87,858.74,0.72062193]
[1766176283066,0.20249747,859.87,858.75,0.72062193]
[1766176283267,0.20249747,859.87,858.76,0.72062193]
[1766176283463,0.20249747,859.87,858.77,0.72062193]
[1766176283768,0.20249747,859.87,858.5,0.86740367]
[1766176283966,0.20249747,859.87,858.51,0.7207076]
[1766176284167,0.20249747,859.87,858.52,0.7207076]
[1766176284369,0.20249747,859.87,858.53,0.7207076]
[1766176284669,0.20249747,859.87,858.58,0.86740367]
[1766176284869,0.20249747,859.87,858.59,0.7207076]
[1766176285066,0.20249747,859.87,858.6,0.7207076]
[1766176285271,0.20249747,859.87,858.61,0.7207076]
[1766176285570,0.20249747,859.87,858.62,0.7207076]
[1766176285866,0.20249747,859.87,858.63,0.7207076]
[1766176286072,0.20249747,859.87,858.66,0.86740367]
[1766176286366,0.20249747,859.87,858.67,0.7207076]
[1766176286569,0.20249747,859.87,858.68,0.7207076]
[1766176286766,0.20249747,859.87,858.69,0.7207076]
[1766176286971,0.20249747,859.87,858.7,0.7207076]
[1766176287168,0.20249747,859.87,858.71,0.7207076]
[1766176287369,0.20249747,859.87,858.72,0.7207076]
[1766176287570,0.20249747,859.87,858.73,0.7207076]
[1766176287770,0.20249747,859.87,858.74,0.7207076]
[1766176287969,0.20249747,859.87,858.75,0.7207076]
[1766176288271,0.20249747,859.87,858.76,0.7207076]
[1766176288471,0.20249747,859.87,858.77,0.7207076]
[1766176288773,0.20249747,859.87,858.78,0.7207076]
[1766176288975,0.20249747,859.87,858.79,0.7207076]
[1766176289174,0.20249747,859.87,858.8,0.7207076]
[1766176289373,0.20249747,859.87,858.81,0.7207076]
[1766176289572,0.20249747,859.87,858.82,0.7207076]
[1766176289776,0.20249747,859.87,858.83,0.7207076]
[1766176289971,0.20249747,859.87,858.84,0.7207076]
[1766176290170,0.20249747,859.87,858.85,0.7207076]
[1766176290471,0.20249747,859.87,858.86,0.7207076]
[1766176290676,0.20249747,859.87,858.87,0.7207076]
[1766176290877,0.20249747,859.87,858.88,0.7207076]
[1766176291173,0.20249747,859.87,858.89,0.7207076]
[1766176291377,0.20249747,859.87,858.9,0.7207076]
[1766176291576,0.20249747,859.87,858.91,0.7207076]
[1766176291778,0.20249747,859.87,858.92,0.7207076]
[1766176291978,0.20249747,859.87,858.93,0.7207076]
[1766176292174,0.20249747,859.87,858.94,0.7207076]
[1766176292475,0.20249747,859.87,858.95,0.7207076]
[1766176292677,0.20249747,859.87,858.96,0.7207076]
[1766176292873,0.20249747,859.87,858.97,0.7207076]
[1766176293172,0.20249747,859.87,858.98,0.7207076]
[1766176293477,0.20249747,859.87,858.99,0.7207076]
[1766176293678,0.20249747,859.87,859.0,0.7207076]
[1766176293875,0.20249747,859.87,859.01,0.7207076]
[1766176294077,0.20249747,859.87,859.02,0.7207076]
[1766176294281,0.20249747,859.87,859.03,0.7207076]
[1766176294578,0.20249747,859.87,859.04,0.7207076]
[1766176294782,0.20249747,859.87,859.05,0.7207076]
[1766176295078,0.20249747,859.87,859.06,0.7207076]
[1766176295278,0.20249747,859.87,858.76,0.86740367]
[1766176295476,0.20249747,859.87,858.77,0.71925225]
[1766176295678,0.20249747,859.87,858.78,0.71925225]
[1766176295882,0.20249747,859.87,858.79,0.71925225]
[1766176296081,0.20249747,859.87,858.8,0.71925225]
[1766176296378,0.20249747,859.87,858.81,0.71925225]
[1766176296579,0.20249747,859.87,858.82,0.71925225]
[1766176296778,0.20249747,859.87,858.83,0.71925225]
[1766176296982,0.20249747,859.87,858.84,0.71925225]
[1766176297182,0.20249747,859.87,858.85,0.71925225]
[1766176297481,0.20249747,859.87,858.74,0.86740367]
[1766176297482,0.20249747,859.87,858.86,0.71925225]
[1766176297680,0.20249747,859.87,858.73,0.86740367]
[1766176297681,0.20249747,859.87,858.87,0.71925225]
[1766176297881,0.20249747,859.87,858.88,0.71925225]
[1766176298177,0.20249747,859.87,858.89,0.71925225]
[1766176298381,0.20249747,859.87,858.9,0.71925225]
[1766176298577,0.20249747,859.87,858.91,0.71925225]
[1766176298781,0.20249747,859.87,858.92,0.71925225]
[1766176298979,0.20249747,859.87,858.93,0.71925225]
[1766176299181,0.20249747,859.87,858.94,0.71925225]
[1766176299382,0.20249747,859.87,858.95,0.71925225]
[1766176299582,0.20249747,859.87,858.96,0.71925225]
[1766176299782,0.20249747,859.87,858.97,0.71925225]
[1766176299981,0.20249747,859.87,858.98,0.71925225]
[1766176300184,0.20249747,859.87,858.99,0.71925225]
[1766176300385,0.20249747,859.87,859.0,0.71925225]
[1766176300582,0.20249747,859.87,858.72,0.86740367]
[1766176300781,0.20249747,859.87,858.73,0.71892548]
[1766176300980,0.20249747,859.87,858.74,0.71892548]
[1766176301179,0.20249747,859.87,858.75,0.71892548]
[1766176301381,0.20249747,859.87,858.76,0.71892548]
[1766176301585,0.20249747,859.87,858.77,0.71892548]
[1766176301785,0.20249747,859.87,858.78,0.71892548]
[1766176302082,0.20249747,859.87,858.79,0.71892548]
[1766176302285,0.20249747,859.87,858.8,0.71892548]
[1766176302485,0.20249747,859.87,858.81,0.71892548]
[1766176302784,0.20249747,859.87,858.82,0.71892548]
[1766176302981,0.20249747,859.87,858.83,0.71892548]
[1766176303181,0.20249747,859.87,858.84,0.71892548]
[1766176303381,0.20249747,859.87,858.85,0.71892548]
[1766176303581,0.20249747,859.87,858.86,0.71892548]
[1766176303882,0.20249747,859.87,858.87,0.71892548]
[1766176304082,0.20249747,859.87,858.88,0.71892548]
[1766176304282,0.20249747,859.87,858.89,0.71892548]
[1766176304481,0.20249747,859.87,858.9,0.71892548]
[1766176304682,0.20249747,859.87,858.91,0.71892548]
[1766176304884,0.20249747,859.87,858.92,0.71892548]
[1766176305083,0.20249747,859.87,858.93,0.71892548]
[1766176305285,0.20249747,859.87,858.68,0.86740367]
[1766176305286,0.20249747,859.87,858.94,0.71892548]
[1766176305487,0.20249747,859.87,858.95,0.71892548]
[1766176305688,0.20249747,859.87,858.68,0.86740367]
[1766176305888,0.20249747,859.87,858.69,0.71876102]
[1766176306086,0.20249747,859.87,858.7,0.71876102]
[1766176306289,0.20249747,859.87,858.71,0.71876102]
[1766176306487,0.20249747,859.87,858.72,0.71876102]
[1766176306785,0.20249747,859.87,858.73,0.71876102]
[1766176306991,0.20249747,859.87,858.74,0.71876102]
[1766176307186,0.20249747,859.87,858.68,0.86740367]
[1766176307187,0.20249747,859.87,858.75,0.71876102]
[1766176307386,0.20249747,859.87,858.76,0.71876102]
[1766176307586,0.20249747,859.87,858.77,0.71876102]
[1766176307786,0.20249747,859.87,858.68,0.86740367]
[1766176307787,0.20249747,859.87,858.78,0.71876102]
[1766176307989,0.20249747,859.87,858.79,0.71876102]
[1766176308189,0.20249747,859.87,858.8,0.71876102]
[1766176308388,0.20249747,859.87,858.81,0.71876102]
[1766176308591,0.20249747,859.87,858.82,0.71876102]
[1766176308788,0.20249747,859.87,858.83,0.71876102]
[1766176308993,0.20249747,859.87,858.84,0.71876102]
[1766176309191,0.20249747,859.87,858.85,0.71876102]
[1766176309393,0.20249747,859.87,858.86,0.71876102]
[1766176309588,0.20249747,859.87,858.87,0.71876102]
[1766176309793,0.20249747,859.87,858.88,0.71876102]
[1766176310089,0.20249747,859.87,858.89,0.71876102]
[1766176310293,0.20249747,859.87,858.9,0.71876102]
[1766176310592,0.20249747,859.87,858.91,0.71876102]
[1766176310790,0.20249747,859.87,858.64,0.86740367]
[1766176310989,0.20249747,859.87,858.69,0.86740367]
[1766176311191,0.20249747,859.87,858.7,0.71881273]
[1766176311390,1.72973604,860.28,858.71,0.71881273]
[1766176311593,1.72973604,860.28,858.69,0.86740367]
[1766176311594,0.20246154,859.65,858.72,0.71881273]
[1766176311895,1.72973604,860.28,858.73,0.71881273]
[1766176312091,0.20246036,859.65,858.74,0.71881273]
[1766176312291,0.20246036,859.65,858.75,0.71881273]
[1766176312489,1.72973604,860.28,858.76,0.71881273]
[1766176312692,1.72973604,860.28,858.77,0.71881273]
[1766176312994,1.72973604,860.28,858.78,0.71881273]
[1766176313291,1.72973604,860.28,858.79,0.71881273]
[1766176313589,1.72973604,860.28,858.8,0.71881273]
[1766176313788,0.20245624,859.91,858.81,0.71881273]